bitfinex/quotes_ETHUSD_20250323
["timestamp","ask_amount","ask_price","bid_price","bid_amount"]
[1742741834762,5.79997,2007.8,2007.6,4.691]
[1742741835057,7.49898225,2007.9,2007.6,4.691]
[1742741835456,12.47950225,2007.9,2007.6,4.691]
[1742741835662,7.49898225,2007.9,2007.6,4.691]
[1742741836068,12.47953225,2007.9,2007.6,4.691]
[1742741836237,4.98069,2007.8,2007.6,4.691]
[1742741840086,7.49897225,2007.9,2007.6,4.691]
[1742741841083,12.47948225,2007.9,2007.6,4.691]
[1742741842386,7.49897225,2007.9,2007.6,4.691]
[1742741844158,8.31809225,2008.0,2007.6,4.691]
[1742741844773,2.51861225,2007.9,2007.6,4.691]
[1742741844979,7.49902225,2007.9,2007.6,4.691]
[1742741846763,12.47952225,2007.9,2007.6,4.691]
[1742741846960,7.49902225,2007.9,2007.6,4.691]
[1742741848000,12.47959225,2007.9,2007.6,4.691]
[1742741848300,4.98068,2007.8,2007.6,4.691]
[1742741848671,7.49929225,2007.8,2007.6,4.691]
[1742741848903,1.51175957,2007.7,2007.6,4.691]
[1742741850798,6.49243957,2007.8,2007.6,4.691]
[1742741852606,1.51175957,2007.7,2007.6,4.691]
[1742741854206,6.49243957,2007.8,2007.6,4.691]
[1742741856082,6.49257957,2007.7,2007.5,26.326]
[1742741856480,1.51175957,2007.7,2007.5,26.326]
[1742741856905,6.49243957,2007.8,2007.5,26.326]
[1742741857211,6.49243957,2007.8,2007.5,31.018]
[1742741858317,1.51175957,2007.8,2007.5,31.018]
[1742741858817,1.51175957,2007.8,2007.5,4.692]
[1742741858982,6.49236957,2007.8,2007.5,4.692]
[1742741860416,1.51175957,2007.7,2007.5,4.692]
[1742741860918,6.49236957,2007.8,2007.5,4.692]
[1742741861789,1.51175957,2007.7,2007.5,4.692]
[1742741862001,6.49236957,2007.8,2007.5,4.692]
[1742741862416,1.51175957,2007.7,2007.5,4.692]
[1742741862596,6.49236957,2007.8,2007.5,4.692]
[1742741863924,0.8007,2007.9,2007.5,4.692]
[1742741864126,5.81239,2008.3,2007.6,12.11405729]
[1742741864324,6.48990957,2008.8,2007.9,0.5905]
[1742741864325,4.9791,2008.4,2007.9,0.5905]
[1742741864517,4.9791,2008.4,2008.0,4.691]
[1742741864518,1.51175957,2008.3,2008.0,4.691]
[1742741864917,1.51175957,2008.4,2008.0,5.37032596]
[1742741865097,1.51175957,2008.5,2008.1,0.5905]
[1742741865297,4.51175957,2008.5,2008.1,0.5905]
[1742741865608,1.51175957,2008.5,2008.1,0.5905]
[1742741866030,4.51175957,2008.5,2008.1,0.5905]
[1742741866327,4.51175957,2008.5,2008.1,1.59201222]
[1742741866914,3.0,2008.5,2008.1,1.59201222]
[1742741867331,3.0,2008.5,2008.2,26.332]
[1742741868832,7.97886,2008.5,2008.2,26.332]
[1742741869827,2.51774393,2008.4,2008.2,26.332]
[1742741871226,2.51774393,2008.4,2008.2,29.49365]
[1742741871436,8.27112393,2008.4,2008.2,26.332]
[1742741871735,4.97933,2008.3,2008.2,26.332]
[1742741874531,8.27112393,2008.4,2008.2,26.332]
[1742741874532,2.51774393,2008.4,2008.2,26.332]
[1742741874731,7.49682393,2008.4,2008.2,26.332]
[1742741874903,12.47612393,2008.4,2008.2,26.332]
[1742741875217,7.49682393,2008.4,2008.2,26.332]
[1742741876133,4.97933,2008.3,2008.2,26.332]
[1742741878617,5.77803,2008.3,2008.2,26.332]
[1742741880043,4.97993,2008.1,2007.9,4.69]
[1742741880345,12.47822393,2008.0,2007.7,31.019]
[1742741880545,2.51774393,2007.8,2007.7,26.329]
[1742741881353,2.51774393,2008.0,2007.7,26.329]
[1742741881723,5.77833,2008.2,2007.7,26.329]
[1742741881926,2.51774393,2008.1,2007.7,26.329]
[1742741882126,2.51774393,2008.1,2007.7,30.486164]
[1742741882947,2.51774393,2008.4,2007.9,0.5905]
[1742741883163,7.49685393,2008.4,2008.0,4.69]
[1742741884148,2.51774393,2008.4,2008.0,4.69]
[1742741884323,2.51774393,2008.4,2007.9,5.57072]
[1742741884522,2.51774393,2008.4,2008.0,4.69]
[1742741884848,2.51774393,2008.4,2008.0,31.02]
[1742741885720,2.51774393,2008.4,2008.1,0.5905]
[1742741886620,7.49684393,2008.4,2008.1,0.5905]
[1742741888922,2.51774393,2008.2,2008.0,26.33]
[1742741889124,2.51774393,2008.2,2008.1,4.69]
[1742741889340,2.51774393,2008.2,2008.0,26.33]
[1742741889537,7.49741393,2008.2,2008.0,26.33]
[1742741890632,4.97983,2008.1,2008.0,26.33]
[1742741890861,6.30575439,2008.1,2008.0,26.33]
[1742741891028,6.30575439,2008.1,2008.0,26.49040038]
[1742741891939,6.30575439,2008.1,2008.0,0.16040038]
[1742741892151,7.08775439,2008.1,2008.0,0.16040038]
[1742741892357,9.96112,2007.9,2007.6,4.69]
[1742741892554,2.51774393,2007.7,2007.6,4.69]
[1742741893053,2.51774393,2007.7,2007.4,26.9195]
[1742741893054,7.49873393,2007.7,2007.4,31.019]
[1742741893237,7.49873393,2007.7,2007.4,34.1209]
[1742741896331,7.49873393,2007.7,2007.4,31.019]
[1742741896532,12.47976393,2007.7,2007.4,31.019]
[1742741897361,7.49869393,2007.7,2007.4,31.019]
[1742741897531,12.47974393,2007.7,2007.4,31.019]
[1742741897731,4.9811,2007.6,2007.4,31.019]
[1742741899456,4.9811,2007.6,2007.4,26.329]
[1742741899661,2.51774393,2007.5,2007.4,26.329]
[1742741899867,7.49906393,2007.5,2007.4,26.329]
[1742741900657,2.51774393,2007.5,2007.4,26.329]
[1742741902667,2.51774393,2007.7,2007.4,30.0214]
[1742741903565,2.51774393,2007.9,2007.4,35.00296]
[1742741904467,2.51774393,2007.9,2007.5,0.5905]
[1742741905566,7.49806393,2007.9,2007.5,0.5905]
[1742741906067,2.51774393,2007.9,2007.5,0.5905]
[1742741906268,2.51774393,2007.9,2007.6,1.74058818]
[1742741906464,2.51774393,2007.9,2007.7,4.69]
[1742741909871,7.49811393,2007.9,2007.7,4.69]
[1742741911051,7.49789393,2008.0,2007.7,4.69]
[1742741911573,12.47815393,2008.0,2007.7,4.69]
[1742741911768,2.51774393,2008.0,2007.7,4.69]
[1742741911970,3.0,2008.1,2007.8,0.5905]
[1742741911971,10.49757393,2008.1,2007.8,0.5905]
[1742741914143,7.49757393,2008.1,2007.8,0.5905]
[1742741914782,4.98008,2008.0,2007.8,0.5905]
[1742741915982,9.96038,2008.0,2007.7,4.69]
[1742741916283,7.49816393,2007.9,2007.7,4.69]
[1742741916488,4.98057,2007.8,2007.7,4.69]
[1742741917287,4.98057,2007.8,2007.4,26.9195]
[1742741917461,4.98057,2007.8,2007.5,4.69]
[1742741917873,7.49861393,2007.7,2007.4,26.9195]
[1742741918071,7.49861393,2007.7,2007.5,4.69]
[1742741918273,4.98107,2007.6,2007.4,26.9195]
[1742741918467,7.49861393,2007.7,2007.5,4.69]
[1742741919086,4.98107,2007.6,2007.5,4.69]
[1742741919798,4.98132,2007.5,2007.4,26.329]
[1742741921297,7.49906393,2007.5,2007.4,26.329]
[1742741921593,4.98132,2007.5,2007.4,26.329]
[1742741921896,7.49881393,2007.6,2007.4,26.329]
[1742741922059,12.48001393,2007.6,2007.4,26.329]
[1742741922466,9.96233,2007.6,2007.4,26.329]
[1742741922765,4.98132,2007.5,2007.4,26.329]
[1742741926699,7.49906393,2007.5,2007.4,26.329]
[1742741926898,8.82330732,2007.5,2007.4,26.329]
[1742741927488,6.30556339,2007.5,2007.4,26.329]
[1742741927766,4.98132,2007.5,2007.4,26.329]
[1742741930203,8.77162,2007.9,2007.4,26.329]
[1742741930498,4.9806,2007.8,2007.4,26.329]
[1742741930707,4.98057,2007.8,2007.4,26.329]
[1742741933309,4.981,2007.7,2007.4,26.329]
[1742741936109,4.981,2007.7,2007.4,30.23992739]
[1742741936404,4.98058,2007.8,2007.4,30.23992739]
[1742741936405,9.96142,2007.8,2007.4,30.23992739]
[1742741936703,4.98064,2007.8,2007.4,30.23992739]
[1742741936920,4.98082,2007.7,2007.4,30.23992739]
[1742741938182,9.96187,2007.7,2007.4,26.329]
[1742741938383,4.98082,2007.7,2007.4,26.329]
[1742741940407,4.98059,2007.8,2007.4,26.329]
[1742741940783,4.98086,2007.7,2007.4,26.329]
[1742741943320,4.9806,2007.8,2007.4,26.329]
[1742741943484,4.98083,2007.7,2007.4,26.329]
[1742741946616,4.98119,2007.6,2007.4,26.329]
[1742741947995,4.98132,2007.5,2007.4,26.329]
[1742741948197,4.98119,2007.6,2007.4,26.329]
[1742741950286,9.96245,2007.6,2007.4,26.329]
[1742741950488,4.98132,2007.5,2007.4,26.329]
[1742741951118,4.98119,2007.6,2007.4,26.329]
[1742741952809,4.98119,2007.6,2007.5,0.16429539]
[1742741955347,4.98119,2007.6,2007.5,0.16448871]
[1742741955535,4.98119,2007.6,2007.3,33.12925163]
[1742741955714,4.98119,2007.6,2007.4,0.16486841]
[1742741956651,9.96245,2007.6,2007.4,0.16486841]
[1742741956822,4.98132,2007.5,2007.4,0.16486841]
[1742741958144,4.98113,2007.6,2007.4,0.16486841]
[1742741959148,9.9624,2007.6,2007.4,0.16486841]
[1742741959335,4.98132,2007.5,2007.4,0.16486841]
[1742741972685,7.71574179,2007.5,2007.4,0.16486841]
[1742741973171,9.96344,2007.4,2006.9,6.79125163]
[1742741973375,9.96339,2007.4,2006.9,6.79125163]
[1742741974356,5.77562,2007.3,2007.0,4.689]
[1742741976677,5.77562,2007.3,2007.1,0.16688855]
[1742741978253,6.49381163,2007.2,2007.1,0.16688855]
[1742741978452,4.98206,2007.2,2007.1,0.16688855]
[1742741979560,4.98213,2007.2,2007.1,0.16688855]
[1742741980645,6.49331163,2007.5,2007.1,0.16688855]
[1742741980646,0.7881,2007.5,2007.1,1.67864018]
[1742741980951,4.98167,2007.4,2007.1,1.67864018]
[1742741982153,4.98182,2007.3,2007.1,0.16688855]
[1742741982362,4.98206,2007.2,2007.1,0.16688855]
[1742741985469,4.98184,2007.3,2007.1,0.16688855]
[1742741985660,4.98184,2007.3,2007.1,3.87697741]
[1742741986064,4.98164,2007.4,2007.1,3.87697741]
[1742741988067,4.98185,2007.3,2007.1,3.87697741]
[1742741989165,4.98161,2007.4,2007.1,3.87697741]
[1742741989586,9.96339,2007.4,2007.1,3.87697741]
[1742741990587,4.98161,2007.4,2007.1,3.87697741]
[1742741991310,4.98181,2007.3,2007.1,3.87697741]
[1742741992289,4.98181,2007.3,2007.1,0.16688855]
[1742741992512,4.98206,2007.2,2007.1,0.16688855]
[1742741992877,4.98188,2007.3,2007.1,0.16688855]
[1742741993302,10.75084,2007.5,2007.1,0.16688855]
[1742741993504,4.98165,2007.4,2007.1,0.16688855]
[1742741993808,9.96344,2007.4,2007.1,0.16688855]
[1742741994004,9.96341,2007.4,2007.1,0.16688855]
[1742741994603,4.98181,2007.3,2007.1,0.16688855]
[1742741994809,4.98181,2007.3,2007.1,3.34552741]
[1742741995106,4.98181,2007.3,2007.1,0.16688855]
[1742741995107,4.98206,2007.2,2007.1,0.16688855]
[1742741995504,4.98246,2007.1,2006.8,0.5905]
[1742741995712,4.98246,2007.1,2006.8,5.2795]
[1742741995899,4.98265,2007.0,2006.8,5.2795]
[1742741996114,4.98265,2007.0,2006.8,6.05949384]
[1742741997010,5.78152,2007.3,2006.8,6.05949384]
[1742741997212,4.98271,2007.0,2006.8,5.2795]
[1742741997516,9.96538,2007.0,2006.8,5.2795]
[1742741997819,4.98267,2007.0,2006.8,5.2795]
[1742741998405,9.96543,2007.0,2006.8,5.2795]
[1742741998610,4.9828,2006.9,2006.8,5.2795]
[1742741998917,4.9828,2006.9,2006.8,4.689]
[1742741999082,4.9828,2006.9,2006.8,4.83069603]
[1742742000516,9.96542,2007.0,2006.8,0.09169603]
[1742742000909,4.98267,2007.0,2006.8,0.09169603]
[1742742001083,4.9828,2006.9,2006.8,0.09169603]
[1742742001784,4.9828,2006.9,2006.8,4.78069603]
[1742742002626,4.9828,2006.9,2006.8,0.09169603]
[1742742002822,6.72962384,2006.9,2006.8,0.09169603]
[1742742005725,4.9828,2006.9,2006.8,0.09169603]
[1742742006226,4.98232,2007.1,2006.8,0.09169603]
[1742742006526,4.98182,2007.3,2006.9,2.52043835]
[1742742006697,9.41714,2007.6,2007.0,2.57025745]
[1742742006898,9.41714,2007.6,2006.8,0.46640597]
[1742742006899,4.98135,2007.5,2007.1,38.53461835]
[1742742007109,4.98135,2007.5,2007.2,3.85346184]
[1742742007328,9.96246,2007.6,2007.2,3.85346184]
[1742742007542,9.96253,2007.6,2007.2,3.85346184]
[1742742007743,4.98136,2007.5,2007.2,3.85346184]
[1742742008737,4.98122,2007.6,2007.2,3.85346184]
[1742742008896,9.96249,2007.6,2007.3,0.98902634]
[1742742009320,9.96251,2007.6,2007.3,0.98902634]
[1742742009725,4.98122,2007.6,2007.3,0.98902634]
[1742742010235,4.98122,2007.6,2006.8,0.09169603]
[1742742010236,4.98248,2007.1,2006.8,0.09169603]
[1742742010603,4.98269,2007.0,2006.8,0.09169603]
[1742742011203,4.9828,2006.9,2006.8,0.09169603]
[1742742013610,4.9828,2006.9,2006.8,4.77969603]
[1742742013806,4.9828,2006.9,2006.8,5.25766563]
[1742742014444,4.9826,2007.0,2006.8,5.25766563]
[1742742014744,4.9826,2007.0,2006.8,4.77969603]
[1742742015112,4.9828,2006.9,2006.8,4.77969603]
[1742742017736,4.9828,2006.9,2006.8,4.82145893]
[1742742026350,4.9826,2007.0,2006.8,4.82145893]
[1742742026651,4.9824,2007.1,2006.8,4.82145893]
[1742742026951,4.9824,2007.1,2006.8,8.68840066]
[1742742028342,4.98257,2007.0,2006.8,8.68840066]
[1742742032242,9.96532,2007.0,2006.8,31.16645893]
[1742742032446,4.9828,2006.9,2006.8,31.16645893]
[1742742033138,4.98257,2007.0,2006.8,31.16645893]
[1742742033678,9.96486,2007.1,2006.8,31.16645893]
[1742742033856,4.98232,2007.1,2006.8,31.16645893]
[1742742034565,7.98176,2007.4,2006.8,33.68689728]
[1742742034767,9.41722,2007.5,2007.0,2.52043835]
[1742742034936,4.98159,2007.4,2007.0,2.52043835]
[1742742035140,4.98159,2007.4,2007.1,0.13210514]
[1742742035360,4.98159,2007.4,2007.2,4.688]
[1742742035671,4.98159,2007.4,2007.3,0.13134555]
[1742742036040,9.96283,2007.5,2007.3,0.13134555]
[1742742036235,4.98156,2007.4,2007.3,0.13134555]
[1742742038065,5.86846262,2007.4,2007.3,0.13134555]
[1742742038269,8.38890097,2007.4,2007.3,0.13134555]
[1742742039144,5.86846262,2007.4,2007.3,0.13134555]
[1742742039452,4.98206,2007.2,2007.1,4.688]
[1742742039863,4.98206,2007.2,2006.8,33.84846835]
[1742742040066,4.98206,2007.2,2006.9,8.57116184]
[1742742041700,4.98233,2007.1,2006.9,8.57116184]
[1742742042147,9.96482,2007.1,2006.9,4.688]
[1742742042348,4.98233,2007.1,2006.9,4.688]
[1742742042583,4.98233,2007.1,2007.0,4.688]
[1742742042962,4.98233,2007.1,2007.0,0.13186449]
[1742742043145,4.98233,2007.1,2007.0,4.81986449]
[1742742046750,4.98208,2007.2,2007.0,4.81986449]
[1742742047380,4.98157,2007.4,2007.0,8.68669277]
[1742742047586,4.98157,2007.4,2007.0,11.20713112]
[1742742047787,4.98157,2007.4,2007.0,16.18959112]
[1742742048001,4.98133,2007.5,2007.0,16.18949112]
[1742742048285,9.96232,2007.6,2007.1,4.98222]
[1742742048476,9.96232,2007.6,2007.2,0.9756599]
[1742742048674,9.96232,2007.6,2007.2,1.10676472]
[1742742048853,4.98108,2007.6,2007.2,3.62720307]
[1742742049054,9.96233,2007.6,2007.2,3.62720307]
[1742742049490,4.98138,2007.5,2007.2,3.62720307]
[1742742050388,9.96236,2007.6,2007.3,0.86093731]
[1742742050558,9.96236,2007.6,2007.4,4.687]
[1742742050759,4.98132,2007.5,2007.4,4.8173453]
[1742742050976,9.96234,2007.6,2007.4,4.8173453]
[1742742051186,4.98108,2007.6,2007.4,4.8173453]
[1742742051386,9.96239,2007.6,2007.4,4.8173453]
[1742742051567,4.98108,2007.6,2007.4,4.8173453]
[1742742052389,4.98132,2007.5,2007.4,4.8173453]
[1742742052569,4.98112,2007.6,2007.4,4.8173453]
[1742742052762,4.98085,2007.7,2007.4,8.22817801]
[1742742052962,5.76028,2007.8,2007.4,8.22817801]
[1742742052963,9.9613,2007.8,2007.4,8.22817801]
[1742742053169,4.98085,2007.7,2007.4,8.22817801]
[1742742054062,9.96187,2007.7,2007.4,8.22817801]
[1742742057999,4.98085,2007.7,2007.4,8.22817801]
[1742742060301,4.98085,2007.7,2007.5,2.97643392]
[1742742060677,4.98085,2007.7,2007.6,0.12909394]
[1742742066103,9.96187,2007.7,2007.4,8.09783271]
[1742742066302,9.96187,2007.7,2007.6,0.12909394]
[1742742066601,9.96187,2007.7,2007.5,0.1294736]
[1742742066900,9.96187,2007.7,2007.6,0.12909394]
[1742742067703,4.98085,2007.7,2007.6,0.12909394]
[1742742078009,0.00948082,2007.9,2007.6,8.27089824]
[1742742078209,0.00948082,2007.9,2007.8,8.09150835]
[1742742078418,0.00948082,2007.9,2007.8,12.18600835]
[1742742078712,0.00948082,2007.9,2007.8,14.63327932]
[1742742079017,0.00948082,2007.9,2007.8,15.01062674]
[1742742079703,0.00948082,2007.9,2007.8,10.03005674]
[1742742080422,0.00948082,2007.9,2007.8,6.54177097]
[1742742080789,0.00948082,2007.9,2007.8,4.81217974]
[1742742081290,0.00948082,2007.9,2007.8,0.12717974]
[1742742081491,0.00948082,2007.9,2007.8,4.685]
[1742742081692,0.00948082,2007.9,2007.6,3.11093835]
[1742742081991,0.00948082,2007.9,2007.7,4.685]
[1742742082192,0.00948082,2007.9,2007.8,0.77959384]
[1742742082622,0.00948082,2007.9,2007.8,0.90615348]
[1742742083218,4.98980082,2007.9,2007.8,0.90615348]
[1742742085032,0.00948082,2007.9,2007.8,0.90615348]
[1742742092847,0.00948082,2007.9,2007.8,27.23615348]
[1742742096711,0.00948082,2007.9,2007.8,29.75659183]
[1742742098243,0.00948082,2007.9,2007.8,27.23615348]
[1742742102642,0.00948082,2007.9,2007.8,26.45655964]
[1742742117684,0.00948082,2007.9,2007.8,26.42655964]
[1742742118182,0.00948082,2007.9,2007.8,0.09655964]
[1742742118183,7.32142168,2007.9,2007.8,0.09655964]
[1742742118476,10.32142168,2007.9,2007.8,0.09655964]
[1742742118653,10.32142168,2007.9,2007.2,6.19402086]
[1742742118654,3.0,2007.5,2007.2,6.19402086]
[1742742118854,3.0,2007.6,2007.3,5.95634813]
[1742742119062,4.98132,2007.5,2007.3,0.69469618]
[1742742119382,4.98156,2007.4,2007.3,0.10419618]
[1742742119971,5.80216,2007.4,2007.3,0.10419618]
[1742742120278,10.31318086,2007.4,2007.3,0.10419618]
[1742742120484,7.98206,2007.2,2007.1,26.33]
[1742742120884,7.98206,2007.2,2006.4,5.2735]
[1742742120885,4.98341,2006.7,2006.4,5.2735]
[1742742121383,4.98305,2006.8,2006.5,0.10815261]
[1742742122484,4.98355,2006.6,2006.5,0.10815261]
[1742742123202,7.50557611,2006.6,2006.5,0.10815261]
[1742742123479,8.33577611,2006.6,2006.5,0.10815261]
[1742742123654,5.81425,2006.4,2006.3,26.332]
[1742742124585,11.33627611,2006.4,2006.3,26.332]
[1742742124791,11.33627611,2006.4,2005.7,26.4489417]
[1742742124792,4.98545,2005.9,2005.7,26.4489417]
[1742742125272,4.98545,2005.9,2005.7,31.1329417]
[1742742125704,4.98461,2006.2,2005.8,0.5905]
[1742742125856,4.98461,2006.2,2005.8,3.11252611]
[1742742126484,4.98436,2006.3,2005.8,8.09806611]
[1742742126685,9.9688,2006.3,2005.8,8.09806611]
[1742742126858,4.98458,2006.2,2005.8,3.11252611]
[1742742127054,4.98458,2006.2,2005.8,4.84172012]
[1742742127787,4.98436,2006.3,2005.8,9.82711012]
[1742742128152,4.98436,2006.3,2005.8,14.81254012]
[1742742128357,4.984,2006.5,2006.0,7.50691611]
[1742742128659,4.98423,2006.4,2006.1,4.685]
[1742742130096,4.9844,2006.3,2006.1,4.685]
[1742742130783,11.048343,2006.4,2006.1,4.685]
[1742742130983,7.98381,2006.5,2006.1,4.685]
[1742742131183,7.98381,2006.5,2006.2,0.5905]
[1742742131777,4.98358,2006.6,2006.2,0.5905]
[1742742131980,4.98358,2006.6,2006.3,2.52202611]
[1742742132687,4.98359,2006.6,2006.3,2.52202611]
[1742742132894,12.967,2006.7,2006.3,2.52202611]
[1742742133191,9.29140601,2006.7,2006.3,2.52202611]
[1742742133370,14.27492601,2006.7,2006.3,2.52202611]
[1742742133770,4.98355,2006.6,2006.4,26.348]
[1742742133977,4.98355,2006.6,2006.5,4.686]
[1742742134162,9.29140601,2006.7,2006.5,4.686]
[1742742134363,14.27486601,2006.7,2006.5,4.686]
[1742742134596,14.27484601,2006.7,2006.5,4.686]
[1742742134758,4.98344,2006.7,2006.5,4.686]
[1742742135457,9.96688,2006.7,2006.5,4.686]
[1742742135661,4.98344,2006.7,2006.5,4.686]
[1742742136391,4.98262,2007.0,2006.6,8.09595611]
[1742742136559,4.98262,2007.0,2006.7,0.04982649]
[1742742136760,4.98248,2007.1,2006.7,4.98328]
[1742742137101,4.98187,2007.3,2006.9,0.5905]
[1742742137283,4.98187,2007.3,2007.0,4.685]
[1742742137589,4.98133,2007.5,2007.1,5.03191869]
[1742742137805,4.98133,2007.5,2007.2,26.347]
[1742742137988,4.98133,2007.5,2007.3,0.5905]
[1742742138159,4.98133,2007.5,2007.4,4.685]
[1742742138363,4.98107,2007.6,2007.4,4.685]
[1742742139164,4.98132,2007.5,2007.2,26.347]
[1742742139375,4.98132,2007.5,2007.3,4.685]
[1742742139588,9.96287,2007.5,2007.3,4.685]
[1742742139787,9.96287,2007.5,2007.2,26.347]
[1742742140115,9.96287,2007.5,2007.4,4.685]
[1742742140279,9.96287,2007.5,2007.2,26.347]
[1742742140482,9.96287,2007.5,2007.3,4.685]
[1742742140788,4.98132,2007.5,2007.3,4.685]
[1742742140989,9.96286,2007.5,2007.4,4.685]
[1742742144179,4.98132,2007.5,2007.4,4.685]
[1742742146319,4.98168,2007.4,2007.2,26.347]
[1742742146613,4.98168,2007.4,2007.3,4.684]
[1742742149189,4.98181,2007.3,2007.2,26.347]
[1742742153794,4.98239,2007.1,2007.0,26.34]
[1742742155030,4.98239,2007.1,2007.0,31.026]
[1742742155827,4.98239,2007.1,2007.0,26.34]
[1742742156007,4.98239,2007.1,2007.0,31.024]
[1742742167199,4.98239,2007.1,2007.0,4.684]
[1742742168036,4.98256,2007.0,2006.9,26.341]
[1742742168217,4.98256,2007.0,2006.9,31.025]
[1742742177549,4.98305,2006.8,2006.7,0.55101918]
[1742742177754,4.98305,2006.8,2006.7,26.89301918]
[1742742178566,4.98305,2006.8,2006.7,31.57701918]
[1742742179874,4.98287,2006.9,2006.7,31.57701918]
[1742742180554,9.96587,2006.9,2006.7,31.57701918]
[1742742181769,4.98305,2006.8,2006.7,31.57701918]
[1742742182153,4.98305,2006.8,2006.7,31.026]
[1742742184053,4.98305,2006.8,2006.7,31.14720811]
[1742742185266,4.98305,2006.8,2006.7,26.46320811]
[1742742185474,6.555808,2006.8,2006.7,26.46320811]
[1742742185649,6.555808,2006.8,2006.7,31.14720811]
[1742742185986,9.555808,2006.8,2006.7,31.14720811]
[1742742187141,9.555808,2006.8,2006.7,26.46320811]
[1742742187775,10.334908,2006.8,2006.7,26.46320811]
[1742742199691,9.555808,2006.8,2006.7,26.46320811]
[1742742199996,4.98231,2007.1,2006.7,33.51054308]
[1742742200290,4.98212,2007.2,2007.0,1.51314497]
[1742742200496,4.98212,2007.2,2007.1,6.19814497]
[1742742200666,4.98212,2007.2,2007.1,6.85037879]
[1742742200995,4.98212,2007.2,2007.1,5.33723382]
[1742742201191,4.98182,2007.3,2007.1,5.33723382]
[1742742201395,9.96373,2007.3,2007.1,5.33723382]
[1742742201701,4.98206,2007.2,2007.1,5.33723382]
[1742742202275,4.4359,2007.6,2007.1,6.62122531]
[1742742202581,3.0,2007.6,2007.1,6.62122531]
[1742742202789,4.98206,2007.2,2007.1,4.78623382]
[1742742206302,4.98206,2007.2,2007.1,0.10123382]
[1742742206475,4.98206,2007.2,2007.1,4.78523382]
[1742742206675,4.98206,2007.2,2007.1,4.684]
[1742742206904,4.98206,2007.2,2007.1,4.80456036]
[1742742207105,4.98206,2007.2,2007.1,0.12056036]
[1742742207403,4.98206,2007.2,2007.1,4.684]
[1742742207602,4.98206,2007.2,2007.1,4.80456036]
[1742742210304,4.98206,2007.2,2007.1,7.32458143]
[1742742210510,4.98206,2007.2,2007.1,8.66313957]
[1742742211008,4.98206,2007.2,2007.1,6.1431185]
[1742742212910,4.98206,2007.2,2007.1,32.4851185]
[1742742222418,4.98189,2007.3,2007.1,35.00513957]
[1742742224303,4.98138,2007.5,2007.2,3.50051396]
[1742742224522,4.98108,2007.6,2007.3,3.07102107]
[1742742224821,4.98108,2007.6,2007.3,3.18918742]
[1742742225732,9.96234,2007.6,2007.3,3.18918742]
[1742742225909,4.98141,2007.5,2007.3,3.18918742]
[1742742226111,4.98141,2007.5,2007.3,3.7436035]
[1742742226503,4.98117,2007.6,2007.3,3.7436035]
[1742742231032,10.50014107,2008.0,2007.6,0.551]
[1742742231033,4.98009,2008.0,2007.6,0.551]
[1742742231235,4.98042,2007.9,2007.7,7.31849614]
[1742742231437,4.98042,2007.9,2007.7,8.10605428]
[1742742232134,4.98057,2007.8,2007.7,8.10605428]
[1742742232340,4.98057,2007.8,2007.7,5.58603321]
[1742742232640,4.98057,2007.8,2007.7,4.79847507]
[1742742233820,4.98057,2007.8,2007.7,31.13547507]
[1742742240949,4.98057,2007.8,2007.7,32.64666955]
[1742742241322,4.98037,2007.9,2007.7,32.64666955]
[1742742242949,4.98037,2007.9,2007.7,31.13547507]
[1742742244357,4.98057,2007.8,2007.7,31.13547507]
[1742742249034,4.98057,2007.8,2007.7,32.64666955]
[1742742251037,4.98057,2007.8,2007.7,31.13547507]
[1742742256586,4.98057,2007.8,2007.7,34.45524203]
[1742742258487,4.98034,2007.9,2007.7,34.45524203]
[1742742258659,4.98034,2007.9,2007.8,26.333]
[1742742258855,4.98034,2007.9,2007.8,26.44615481]
[1742742266774,4.98013,2008.0,2007.8,26.44615481]
[1742742266974,4.98032,2007.9,2007.8,26.44615481]
[1742742267170,3.7871,2008.2,2007.8,33.90610443]
[1742742267500,4.97935,2008.3,2008.1,1.51119448]
[1742742267683,4.97935,2008.3,2008.2,4.68]
[1742742268312,4.97935,2008.3,2008.2,6.19119448]
[1742742268714,4.97935,2008.3,2008.2,4.68]
[1742742269414,2.29829448,2008.6,2008.2,9.65942]
[1742742269718,4.97912,2008.4,2008.2,5.23441608]
[1742742269924,4.97933,2008.3,2008.2,5.23441608]
[1742742275855,4.97933,2008.3,2008.2,31.009]
[1742742282038,4.97912,2008.4,2008.2,31.009]
[1742742282337,4.97912,2008.4,2008.2,31.56]
[1742742282908,4.97933,2008.3,2008.2,31.56]
[1742742283737,4.97933,2008.3,2008.2,31.009]
[1742742296247,4.97912,2008.4,2008.2,31.009]
[1742742296453,4.97933,2008.3,2008.2,4.68]
[1742742296650,6.49006448,2008.5,2008.2,31.006]
[1742742296857,4.97931,2008.4,2008.2,31.006]
[1742742297356,9.95859,2008.4,2008.2,31.006]
[1742742298857,4.97933,2008.3,2008.2,31.006]
[1742742309268,8.45050493,2008.3,2008.2,26.326]
[1742742309639,9.96169941,2008.3,2008.2,26.326]
[1742742309862,12.96169941,2008.3,2008.2,26.326]
[1742742312891,11.45050493,2008.3,2008.2,26.326]
[1742742317475,5.86742999,2009.0,2008.2,26.326]
[1742742317649,5.86742999,2009.0,2008.5,1.51119448]
[1742742317650,0.803,2009.0,2008.5,1.51119448]
[1742742317838,4.97843,2008.7,2008.6,4.677]
[1742742318042,0.803,2009.0,2008.3,5.53015]
[1742742318043,1.51119448,2008.8,2008.3,5.53015]
[1742742318243,6.48943448,2008.8,2008.6,4.677]
[1742742318677,6.48935448,2008.8,2008.6,4.677]
[1742742318870,4.97816,2008.8,2008.6,4.677]
[1742742320187,0.803,2009.0,2008.6,5.70067859]
[1742742320188,4.9776,2009.0,2008.6,5.70067859]